Cogmind - Beta 14 @@@ ROGUE MODE // 2024.08.19 @ 01:02:42 Player: THN-L0C Result: Self-destructed Performance ------------- Evolutions (1) 500 Regions Visited (3) 600 Robots Destroyed (8) 40 Value Destroyed (71) 71 Prototype IDs (0) 0 Alien Tech Used (0) 0 Bonus (93) 93 TOTAL SCORE: 1304 Bonus ------- Follower Combat Kills 93 Cogmind --------- Core Integrity 379/400 Matter 300/300 Energy 100/100 System Corruption 0% Temperature Cool (6) Movement Walking (120) Location -9/Materials Parts ------- > --- POWER (1) -------- (None) > --- PROPULSION (3) --- Carbon-fiber Leg Carbon-fiber Leg > --- UTILITY (3) ------ Advanced Heat Sink Small Storage Unit > --- WEAPON (2) ------- (None) > --- INVENTORY (8) ---- Ion Engine Huge Storage Unit High-capacity Matter Pod (200) Battle Cannon Peak State ------------ > --- POWER ------------ (None) > --- PROPULSION ------- Carbon-fiber Leg Carbon-fiber Leg > --- UTILITY ---------- Advanced Heat Sink Small Storage Unit > --- WEAPON ----------- Medium Laser > --- INVENTORY -------- Ion Engine Huge Storage Unit High-capacity Matter Pod Battle Cannon [Rating: 13] Favorites ----------- Power Ion Engine Engine Ion Engine Propulsion Carbon-fiber Leg Treads Light Treads Leg Carbon-fiber Leg Wheel Wheel Utility Small Storage Unit Device Advanced Heat Sink Storage Small Storage Unit Weapon Medium Laser Energy Gun Medium Laser Build | -11 -10 -10 -9 ------- Run | Yrd Mat Min Mat Slots Evolved 2 | . . . 2 Power . | . . . . Propulsion 1 | . . . 1 Utility 1 | . . . 1 Weapon . | . . . . Parts Attached 10 | 6 . 4 . Power 1 | 1 . . . Engine 1 | 1 . . . Core . | . . . . Reactor . | . . . . Propulsion 5 | 2 . 3 . Treads 1 | . . 1 . Leg 2 | . . 2 . Wheel 2 | 2 . . . Hover . | . . . . Flight . | . . . . Utility 2 | 1 . 1 . Device 1 | . . 1 . Storage 1 | 1 . . . Processor . | . . . . Hackware . | . . . . Protection . | . . . . Artifact . | . . . . Weapon 2 | 2 . . . Energy Gun 2 | 2 . . . Energy Cannon . | . . . . Ballistic Gun . | . . . . Ballistic Cannon . | . . . . Launcher . | . . . . Special Weapon . | . . . . Impact Weapon . | . . . . Slashing Weapon . | . . . . Piercing Weapon . | . . . . Special Melee Weapon . | . . . . Unidentified Prototypes . | . . . . Parts Lost 3 | . . 2 1 Power 1 | . . 1 . Propulsion . | . . . . Utility . | . . . . Weapon 2 | . . 1 1 Highest Loss Streak 2 | . . 2 1 To Critical Strikes 1 | . . . 1 Average Slot Usage (%) 76 | . 85 78 47 Engine 7 | . 14 7 . Leg 12 | . . 12 22 Wheel 14 | . 28 15 . Device 6 | . . 5 11 Storage 13 | . 14 14 11 Energy Gun 20 | . 28 21 3 Peak Build Rating 13 | 6 6 13 13 Average Rating 8 | 3 6 8 12 On Entrance 6 | . 6 6 13 Naked Turns . | . . . . Heaviest Build 14 | 14 14 14 8 Greatest Support 26 | 26 26 26 15 Greatest Overweight (x) 1 | . . 1 . Average Overweight (x) . | . . . . Largest Inventory Capacity 8 | 8 8 8 8 Average Capacity 7 | 6 8 8 8 Most Carried 4 | . 1 4 4 Average Carried 2 | . . 2 4 Final Capacity 8 | 8 8 8 8 Final Carried 4 | . 1 4 4 Class Distribution -------------------- 100% | Mutant Dominant Class ---------------- Mutant | -10/Materials Mutant | -10/Mines Mutant | -9/Materials Resources | -11 -10 -10 -9 ----------- Run | Yrd Mat Min Mat Matter Collected 480 | 112 . 368 . Remotely . | . . . . Salvage Created 130 | . . 130 . Parts 13 | . . 13 . Haulers Intercepted . | . . . . Recyclers Shooed . | . . . . Parts Field Recycled . | . . . . Retrieved Matter . | . . . . Parts Self-Destructed . | . . . . Prevented . | . . . . Kills | -11 -10 -10 -9 ------- Run | Yrd Mat Min Mat Combat Hostiles Destroyed 7 | . . 7 . Guns 7 | . . 7 . Classes Destroyed 2 | . . 2 . Worker 1 | . . 1 . Swarmer 7 | . . 7 . Best Kill Streak 3 | . . 3 . Combat Bots Only 3 | . . 3 . Max Kills in Single Turn 2 | . . 2 . Gunslinging 1 | . . 1 . Exploded . | . . . . Melee . | . . . . Uniques/NPCs Destroyed 1 | . . 1 . YI-UF0 (-10/Mines) Combat | -11 -10 -10 -9 -------- Run | Yrd Mat Min Mat Hostile Shots Fired 62 | . . 50 12 Missed 21 | . . 16 5 Damage Taken 461 | . . 380 81 Core 124 | . . 103 21 Absorbed by Shields . | . . . . Core Remaining (%) 79 | 100 . 58 . Volleys Fired 27 | . . 27 . Largest 2 | . . 2 . Hottest 100 | . . 100 . Shots Fired 44 | . . 44 . Gun 44 | . . 44 . Cannon . | . . . . Launcher . | . . . . Special . | . . . . Kinetic . | . . . . Thermal 44 | . . 44 . Explosive . | . . . . Electromagnetic . | . . . . Robot Hit Streak 5 | . . 5 . Robot Miss Streak 8 | . . 8 . Penetration Max . | . . . . Secondary Targets 2 | . . 2 . Max Gunslinging Chain 1 | . . 1 . Shots Hit Robots 16 | . . 16 . Core Hits 8 | . . 8 . Critical Kills . | . . . . Critical Parts Destroyed . | . . . . Critical Strikes 1 | . . 1 . Burn 1 | . . 1 . Melee Attacks . | . . . . Impact . | . . . . Slashing . | . . . . Piercing . | . . . . Sneak Attacks . | . . . . Combat Hostiles . | . . . . Follow-up Attacks . | . . . . Damage Inflicted 218 | . . 218 . Guns 214 | . . 214 . Cannons . | . . . . Explosions . | . . . . Melee . | . . . . Ramming 4 | . . 4 . Kinetic . | . . . . Thermal 214 | . . 214 . Explosive . | . . . . Electromagnetic . | . . . . Impact . | . . . . Slashing . | . . . . Piercing . | . . . . Highest Corruption . | . . . . Average Corruption . | . . . . Corruption Purged . | . . . . Corruption Blocked . | . . . . Overload Shots . | . . . . Overflow Damage . | . . . . Projectiles . | . . . . Explosions . | . . . . Melee . | . . . . Knockbacks . | . . . . Impact . | . . . . Kinetic . | . . . . Secondary . | . . . . Self-Inflicted Damage 1 | . . 1 . Shots . | . . . . Rammed 2 | . . 2 . Targets Rammed 2 | . . 2 . Kicked . | . . . . Crushed . | . . . . Highest Temperature 351 | . . 351 . Average Temperature 133 | . . 133 . Received Heat Transfer 54 | . . 9 45 Siege Activations . | . . . . Robots Corrupted . | . . . . Combat Hostiles . | . . . . Parts Fried . | . . . . Impact Corruptions . | . . . . Robots Melted . | . . . . Combat Hostiles . | . . . . Parts Melted 1 | . . 1 . Heat Transferred 703 | . . 703 . Parts Sabotaged . | . . . . Parts Stolen . | . . . . Parts Stripped . | . . . . Power Chain Reactions . | . . . . Alert | -11 -10 -10 -9 ------- Run | Yrd Mat Min Mat Peak Influence 221 | . 15 190 221 Initial 40 | . . 5 40 Average 77 | . 14 82 97 Maximum Alert Level 1 | . . . 1 Low Security (%) 99 | 100 100 100 95 Level 1 . | . . . 4 Level 2 . | . . . . Level 3 . | . . . . Level 4 . | . . . . Level 5 . | . . . . High Security . | . . . . Max Security . | . . . . Squads Dispatched 1 | . 1 . . Investigation . | . . . . Extermination . | . . . . Reinforcement 1 | . 1 . . Assault . | . . . . Garrison . | . . . . Intercept . | . . . . Searches Triggered . | . . . . Construction Impeded . | . . . . Haulers Reinforced . | . . . . Active Scanning Responses . | . . . . Cargo Convoy Interrupts . | . . . . Stealth | -11 -10 -10 -9 --------- Run | Yrd Mat Min Mat Distress Signals 2 | . 1 . 1 Communications Jammed . | . . . . Distress Signals . | . . . . Times Spotted 24 | . 2 13 9 Peak Tracking Total 5 | . 2 3 5 Tactical Retreats 2 | . . 2 . Traps | -11 -10 -10 -9 ------- Run | Yrd Mat Min Mat Traps Triggered . | . . . . Indirectly . | . . . . Trap Hack Attempts . | . . . . Triggered . | . . . . Disarmed . | . . . . Reprogrammed . | . . . . Reused . | . . . . Traps Extracted . | . . . . Installed . | . . . . Triggered . | . . . . Machines | -11 -10 -10 -9 ---------- Run | Yrd Mat Min Mat Machines Disabled . | . . . . Max in Single Turn . | . . . . Machines Repaired . | . . . . Machines Dismantled . | . . . . Machines Sabotaged . | . . . . Overloaded Fab Kills . | . . . . Hacking | -11 -10 -10 -9 --------- Run | Yrd Mat Min Mat Machines Accessed . | . . . . Terminals . | . . . . Fabricators . | . . . . Repair Stations . | . . . . Recycling Units . | . . . . Scanalyzers . | . . . . Garrison Access . | . . . . Total Hacks . | . . . . Successful . | . . . . Failed . | . . . . Catastrophic . | . . . . Database Lockouts . | . . . . Manual . | . . . . Terminals . | . . . . Fabricators . | . . . . Repair Stations . | . . . . Recycling Units . | . . . . Scanalyzers . | . . . . Garrison Access . | . . . . Terminal Hacks . | . . . . Fabricator Hacks . | . . . . Repair Station Hacks . | . . . . Recycling Unit Hacks . | . . . . Scanalyzer . | . . . . Garrison Access Hacks . | . . . . Unauthorized Hacks . | . . . . Terminals . | . . . . Fabricators . | . . . . Repair Stations . | . . . . Recycling Units . | . . . . Scanalyzers . | . . . . Garrison Access . | . . . . Data Cores Recovered . | . . . . Used . | . . . . Hacking Detections . | . . . . Full Trace Events . | . . . . Feedback Events . | . . . . Feedback Blocked . | . . . . Robot Schematics Acquired . | . . . . Robots Built . | . . . . Authchips . | . . . . Time . | . . . . Total Robot Build Rating . | . . . . Part Schematics Acquired . | . . . . Parts Built . | . . . . Authchips . | . . . . Time . | . . . . Total Part Build Rating . | . . . . Parts Repaired . | . . . . Time . | . . . . Parts Recycled . | . . . . Recycled Matter . | . . . . Retrieved Matter . | . . . . Retrieved Components . | . . . . Parts Scanalyzed . | . . . . Part Schematics Acquired . | . . . . Parts Damaged . | . . . . Bothacking | -11 -10 -10 -9 ------------ Run | Yrd Mat Min Mat Used RIF Installer . | . . . . Robots Hacked . | . . . . Non-combat . | . . . . Combat . | . . . . Robot Hacks Applied . | . . . . Relay Couplers Released . | . . . . Fabnet Peak Effective % . | . . . . Robots Rewired . | . . . . Allies Hacked . | . . . . Hacks Repelled . | . . . . Allies | -11 -10 -10 -9 -------- Run | Yrd Mat Min Mat Total Allies 3 | . . 3 . Largest Group 3 | . . 3 3 Highest-Rated Group 40 | . . 40 40 Highest-Rated Ally 16 | . . 16 16 Total Orders . | . . . . Ally Attacks 43 | . . 14 29 Total Damage 402 | . . 146 256 Kills 9 | . . 3 6 Allies Corrupted . | . . . . Allies Melted . | . . . . Intel | -11 -10 -10 -9 ------- Run | Yrd Mat Min Mat Robot Analysis Total . | . . . . Derelict Logs Recovered 1 | . . 1 . Drone Launches . | . . . . Drone Recoveries . | . . . . Exploration | -11 -10 -10 -9 ------------- Run | Yrd Mat Min Mat Turns Passed 893 | 45 30 754 64 Spaces Moved 786 | 44 33 656 53 Core 8 | 8 . . . Treads . | . . . . Legs 304 | . . 251 53 Wheels 474 | 36 33 405 . Hover . | . . . . Flight . | . . . . Fastest Speed 50 | 50 90 80 120 Average Speed 102 | 83 90 102 120 Slowest Speed 120 | 100 90 120 120 Overloaded Moves . | . . . . Propulsion Burnouts . | . . . . Robots Hopped . | . . . . Cave-ins Triggered . | . . . . Exploration Rate (%) 32 | 4 16 97 14 Regions Visited 3 Branch Regions 1 Pre-discovered Areas . | . . . . Known Exits Taken . | . . . . Unknown Exits Taken 3 | 1 1 1 . Scrap Searched 2 | . . 2 . Spaces Dug . | . . . . Terrain Destroyed . | . . . . Melee . | . . . . Projectile . | . . . . AOE . | . . . . Terrain Rammed . | . . . . Walls Destroyed . | . . . . Machines Disabled . | . . . . Actions | -11 -10 -10 -9 --------- Run | Yrd Mat Min Mat Total 826 | 49 33 691 53 Wait . | . . . . Move 783 | 43 32 655 53 Hop . | . . . . Pick Up 4 | . 1 3 . Fast Attach 7 | 6 . 1 . Attach . | . . . . Detach . | . . . . Swap 3 | . . 3 . Drop . | . . . . Fire 27 | . . 27 . Melee . | . . . . Ram 2 | . . 2 . Kick . | . . . . Crush . | . . . . Escape Stasis . | . . . . Rewire . | . . . . Trap . | . . . . Miscellaneous . | . . . . Route ------- -11/Scrapyard -10/Materials -10/Mines (discovered 2 exits: [*Mat x2]) -9/Materials History --------- Turn | Location | Event 22 | -11/Scrapyard | Discovered new exit (range 15) 46 | -11/Scrapyard | Entered Materials 73 | -10/Materials | Discovered new exit (range 5) 76 | -10/Materials | Entered Mines 85 | -10/Mines | Learned Materials emergency access door positions 282 | -10/Mines | Discovered new exit (range 10) 303 | -10/Mines | Build established: Mutant 435 | -10/Mines | A weapon hastily lodged in a ceiling crevice suddenly fell to the ground 458 | -10/Mines | Assisted by bots powering up and referring to "LRC-V3" 498 | -10/Mines | Allies destroyed YI-UF0 807 | -10/Mines | Discovered new exit (range 10) 830 | -10/Mines | Entered Materials 830 | -9/Materials | Accompanied by 3 allies 830 | -9/Materials | Evolved 2 slots: Propulsion x1, Utility x1 894 | -9/Materials | Self-destructed Last Messages --------------- 00505_ Acquired 10 matter. 00507_ Acquired Carbon-fiber Leg. 00510_ Acquired Adv. Heat Sink. 00514_ The unstable cave ceiling collapses. 00514_ Wheel crushed. 00515_ Acquired 20 matter. 00524_ The unstable cave ceiling collapses. 00675_ S-10 Pest destroyed. 00807_ EXIT=FOUND PARAMETERS=PROPULSION+1,UTILITY+1 LOCATION=UNKNOWN GOAL=ESCAPE Loading Materials emergency access points (x2)... 00846_ G-34 Mercenary destroyed. 00852_ Critical hit (Burn: +37). 00852_ Critical hit (Destroy). 00852_ Med. Laser destroyed. 00867_ Y-45 Defender destroyed. 00869_ W-16 Scout sends out distress signal. 00879_ S-10 Pest destroyed. Map ----- +----------------------------------------------------+ | ???????????????????????# #?????????????????????? | | ???????????????????????# #?????????????????????? | | ???????????????????????# #######+#####?????????? | | ?????????????????????### ????????? | | ?????????????????????#"" #?????????????? | | ?????????????????????#"Y """ #?????????????? | | ?????????????????????#"" %""" #?????????????? | | ?????????????????????### =%""" #?????????????? | | ???????????????????????# [= ###???????????? | | ???????????????????????# / "?????????? | | ???????????????????????# """ ### ?????????? | | ???????????????????????# """ #?????????????? | | ???????????????????????# """ #?????????????? | | ???????????????????????# #?????????????? | | ???????????????????????+ ##????????????? | | ???????????????????????# """ #????????????? | | ???????????????????????# """ +????????????? | | ???????????????????????# """ #????????????? | | ???????????????????????# #????????????? | | ???????????????????????# #????????????? | | ???????????????????????# """ [ w#????????????? | | ???????????????????????+ """ ### ?????????? | | ???????????????????????# """ #????????? | | ???????????????????????# u #????????? | | ???????????????????????# k #????????? | | ???????????????????????# @ ????????? | | ???????????????????????# ????????? | | ???????????????????????# u ????????? | | ???????????????????????# ####+####?????????? | | ???????????????????????# #?????????????????? | | ???????????????????????# #?????????????????? | | ???????????????????????# #####?????????????????? | | ???????????????????????# #?????????????????????? | | ???????????????????????# #?????????????????????? | | ???????????????????????# g #?????????????????????? | | ???????????????????????#g #?????????????????????? | | ???????????????????????#a #?????????????????????? | | ???????????????????????+ #?????????????????????? | | ???????????????????????# ??????????????????????? | | ????????????????????????# #??????????????????????? | | ????????????????????????? ???????????????????????? | | ?????????????????????????????????????????????????? | | ??????????????+??????????????????????????????????? | | ?????????????????????????????????????????????????? | | ?????????????????????????????????????????????????? | | ?????????????????????????????????????????????????? | | ?????????????????????????????????????????????????? | | ?????????????????????????????????????????????????? | | ?????????????????????????????????????????????????? | | ?????????????????????????????????????????????????? | +----------------------------------------------------+ Best States ------------- Heat Dissipation 47 Energy Generation 10 Energy Capacity 250 Matter Stores 300 Matter Capacity 300 Sight Range 16 Terrain Scan Density 10 Evasion (%) 55 Item Schematics ----------------- None Robot Schematics ------------------ None Fabricated ------------ Nothing Alien Tech Used ----------------- None Achievements -------------- None Challenges ------------ None Game ------ Seed AluminumMicroBasin Manual? 0 Play Time 00:04:16 Cumulative 74.6 hours Start 2024.08.19 @ 00:58:46 End 2024.08.19 @ 01:02:42 Sessions 1 Manual Loads 0 Difficulty Rogue Special Mode None Game No. 75 Rogue 75 Adventurer 0 Explorer 0 Win Type - Total 0 Types 0/0/0/0/0/0/0/0/0 Lore% 46 Gallery% 49 Achievement% 40 Wizard Run 0 Options --------- Layout 2 ASCII 0 Keyboard 1 Movement Vi Keybinds 0 Fullscreen 1 Font 32/SmallcapsGlow Map View 77x44 Zoom Use 0% Tactical HUD 1 Map Filters NONE Filters NONE Steam 1 RUN: bf1ec95b-77b7-4c52-bc2e-d53a9ccbd34a